fUSD/lending_fUSD_20241219
["ID","MTS","AMOUNT","RATE_DAILY","PERIOD"]
[345992853,1734615054634,-500.0,0.00022191,4]
[345992854,1734615054643,-500.0,0.00022191,4]
[345992855,1734615054653,-500.0,0.00022191,4]
[345992856,1734615054662,-500.0,0.00022191,4]
[345992857,1734615054672,-500.0,0.00022191,4]
[345992858,1734615054682,-500.0,0.00022191,4]
[345992859,1734615054692,-500.0,0.00022191,4]
[345992860,1734615054702,-500.0,0.00022191,4]
[345992861,1734615054715,-500.0,0.00022191,4]
[345992862,1734615054726,-500.0,0.00022191,4]
[345992863,1734615054736,-500.0,0.00022191,4]
[345992864,1734615054746,-500.0,0.00022191,4]
[345992865,1734615054756,-500.0,0.00022191,4]
[345992866,1734615054766,-500.0,0.00022191,4]
[345992867,1734615054775,-623.98162973,0.00022191,4]
[345992868,1734615054785,-1304.0,0.00022191,4]
[345992869,1734615054795,-502.75287031,0.00022191,4]
[345992870,1734615054804,-500.0,0.00022191,4]
[345992871,1734615054814,-522.39,0.00022191,4]
[345992872,1734615054823,-575.95,0.00022191,4]
[345992873,1734615054833,-500.0,0.00022191,4]
[345992874,1734615054842,-501.31576489,0.00022191,4]
[345992875,1734615054851,-500.0,0.00022191,4]
[345992876,1734615054861,-700.0,0.00022191,4]
[345992877,1734615054870,-500.0,0.00022191,4]
[345992878,1734615054880,-500.0,0.00022191,4]
[345992879,1734615054889,-500.0,0.00022191,4]
[345992880,1734615054900,-500.0,0.00022191,4]
[345992881,1734615054910,-634.30596332,0.00022191,4]
[345992882,1734615054919,-500.0,0.00022191,4]
[345992883,1734615054929,-506.72428064,0.00022191,4]
[345992884,1734615054938,-500.0,0.00022191,4]
[345992885,1734615054948,-162.14530663,0.00022191,4]
[345992886,1734615054958,-500.0,0.00022191,4]
[345992887,1734615054968,-3253.1,0.00022191,4]
[345992888,1734615054978,-500.0,0.00022191,4]
[345992889,1734615054987,-500.0,0.00022191,4]
[345992890,1734615054996,-651.6,0.00022191,4]
[345992891,1734615055005,-500.0,0.00022191,4]
[345992892,1734615055015,-500.0,0.00022191,4]
[345992893,1734615055025,-516.29,0.00022191,4]
[345992894,1734615055035,-500.0,0.00022191,4]
[345992895,1734615055044,-500.0,0.00022191,4]
[345992896,1734615055054,-500.0,0.00022191,4]
[345992897,1734615055063,-1091.25,0.00022191,4]
[345992898,1734615055073,-500.0,0.00022191,4]
[345992899,1734615055083,-500.0,0.00022191,4]
[345992900,1734615055092,-500.0,0.00022191,4]
[345992901,1734615055102,-500.0,0.00022191,4]
[345992902,1734615055111,-500.0,0.00022191,4]
[345992903,1734615055121,-500.0,0.00022191,4]
[345992904,1734615055130,-534.72,0.00022191,4]
[345992905,1734615055140,-1131.52,0.00022191,4]
[345992906,1734615055149,-1112.24,0.00022191,4]
[345992907,1734615055159,-500.0,0.00022191,4]
[345992908,1734615055168,-500.0,0.00022191,4]
[345992909,1734615055178,-500.0,0.00022191,4]
[345992910,1734615055187,-500.0,0.00022191,4]
[345992911,1734615055196,-500.0,0.00022191,4]
[345992912,1734615055207,-500.0,0.00022191,4]
[345992913,1734615055217,-500.0,0.00022191,4]
[345992914,1734615055229,-500.0,0.00022191,4]
[345992915,1734615055239,-500.0,0.00022191,4]
[345992916,1734615055250,-500.0,0.00022191,4]
[345992917,1734615055260,-570.32,0.00022191,4]
[345992918,1734615055270,-500.0,0.00022191,4]
[345992919,1734615055280,-500.0,0.00022191,4]
[345992920,1734615055290,-500.0,0.00022191,4]
[345992921,1734615055301,-729.89,0.00022191,4]
[345992922,1734615055313,-502.94995009,0.00022191,4]
[345992923,1734615055325,-584.07,0.00022191,4]
[345992924,1734615055335,-608.08,0.00022191,4]
[345992925,1734615055346,-503.36759843,0.00022191,4]
[345992926,1734615055357,-500.0,0.00022191,4]
[345992927,1734615055368,-500.0,0.00022191,4]
[345992928,1734615055378,-1097.38,0.00022191,4]
[345992929,1734615055389,-500.0,0.00022191,4]
[345992930,1734615055400,-500.0,0.00022191,4]
[345992931,1734615055413,-771.74,0.00022191,4]
[345992932,1734615055423,-500.0,0.00022191,4]
[345992933,1734615055433,-500.0,0.00022191,4]
[345992934,1734615055444,-500.0,0.00022191,4]
[345992935,1734615055453,-542.19491366,0.00022191,4]
[345992936,1734615055465,-500.0,0.00022191,4]
[345992937,1734615055476,-500.000001,0.00022191,4]
[345992938,1734615055485,-500.0,0.00022191,4]
[345992939,1734615055494,-500.0,0.00022191,4]
[345992940,1734615055504,-500.0,0.00022191,4]
[345992941,1734615055513,-500.0,0.00022191,4]
[345992942,1734615055523,-500.0,0.00022191,4]
[345992943,1734615055532,-500.0,0.00022191,4]
[345992944,1734615055541,-209.68873653,0.00022191,4]
[345992945,1734615055551,-500.0,0.00022191,4]
[345992946,1734615055560,-1446.27,0.00022191,4]
[345992947,1734615055569,-500.0,0.00022191,4]
[345992948,1734615055579,-500.0,0.00022191,4]
[345992949,1734615055588,-500.0,0.00022191,4]
[345992950,1734615055597,-619.09,0.00022191,4]
[345992951,1734615055607,-500.0,0.00022191,4]
[345992952,1734615055617,-500.0,0.00022191,4]
[345992953,1734615055626,-3392.8,0.00022191,4]
[345992954,1734615055636,-1296.66,0.00022191,4]
[345992955,1734615055646,-500.0,0.00022191,4]
[345992956,1734615055655,-500.0,0.00022191,4]
[345992957,1734615055665,-500.0,0.00022191,4]
[345992958,1734615055674,-500.0,0.00022191,4]
[345992959,1734615055684,-500.0,0.00022191,4]
[345992960,1734615055695,-500.0,0.00022191,4]
[345992961,1734615055705,-2952.13,0.00022191,4]
[345992962,1734615055715,-500.0,0.00022191,4]
[345992963,1734615055725,-500.0,0.00022191,4]
[345992964,1734615055735,-500.0,0.00022191,4]
[345992965,1734615055745,-500.0,0.00022191,4]
[345992966,1734615055754,-507.30624498,0.00022191,4]
[345992967,1734615055764,-500.0,0.00022191,4]
[345992968,1734615055774,-500.0,0.00022191,4]
[345992969,1734615055783,-500.0,0.00022191,4]
[345992970,1734615055793,-500.0,0.00022191,4]
[345992971,1734615055802,-500.0,0.00022191,4]
[345992972,1734615055812,-508.3007542,0.00022191,4]
[345992973,1734615055821,-500.0,0.00022191,4]
[345992974,1734615055831,-500.0,0.00022191,4]
[345992975,1734615055840,-500.0,0.00022191,4]
[345992976,1734615055850,-500.0,0.00022191,4]
[345992977,1734615055859,-500.0,0.00022191,4]
[345992978,1734615055869,-500.0,0.00022191,4]
[345992979,1734615055878,-500.0,0.00022191,4]
[345992980,1734615055888,-500.0,0.00022191,4]
[345992981,1734615055897,-1258.09,0.00022191,4]
[345992982,1734615055907,-500.0,0.00022191,4]
[345992983,1734615055916,-500.0,0.00022191,4]
[345992984,1734615055926,-500.0,0.00022191,4]
[345992985,1734615055935,-500.0,0.00022191,4]
[345992986,1734615055945,-500.0,0.00022191,4]
[345992987,1734615055954,-503.62460301,0.00022191,4]
[345992988,1734615055965,-626.35,0.00022191,4]
[345992989,1734615055975,-565.32,0.00022191,4]
[345992990,1734615055984,-506.34607746,0.00022191,4]
[345992991,1734615055994,-575.29,0.00022191,4]
[345992992,1734615056003,-438.97,0.00022191,4]
[345992993,1734615056013,-500.0,0.00022191,4]
[345992994,1734615056023,-500.0,0.00022191,4]
[345992995,1734615056033,-500.0,0.00022191,4]
[345992996,1734615056042,-500.0,0.00022191,4]
[345992997,1734615056051,-500.0,0.00022191,4]
[345992998,1734615056061,-503.77891555,0.00022191,4]
[345992999,1734615056071,-500.0,0.00022191,4]
[345993000,1734615056080,-500.0,0.00022191,4]
[345993001,1734615056090,-533.31,0.00022191,4]
[345993002,1734615056099,-500.0,0.00022191,4]
[345993003,1734615056108,-745.33,0.00022191,4]
[345993004,1734615056118,-1500.0,0.00022193,2]
[345993005,1734615056127,-150.0,0.00022195,2]
[345993006,1734615056229,-150.0,0.00022199,2]
[345993007,1734615056239,-150.0,0.00022199,2]
[345993008,1734615056249,-150.0,0.000222,2]
[345993009,1734615056259,-150.0,0.000222,2]
[345993010,1734615056268,-150.0,0.00022211,2]
[345993011,1734615056278,-150.0,0.00022212,2]
[345993012,1734615056288,-150.0,0.00022218,2]
[345993013,1734615056298,-1500.0,0.00022219,2]
[345993014,1734615056308,-150.0,0.00022224,2]
[345993015,1734615056317,-150.0,0.00022229,2]
[345993016,1734615056328,-616.67,0.00022232,2]
[345993017,1734615056337,-150.0,0.00022232,2]
[345993018,1734615056347,-239.71903188,0.00022233,2]
[345993019,1734615056357,-150.0,0.00022236,2]
[345993020,1734615056367,-150.0,0.00022237,2]
[345993021,1734615056377,-150.0,0.00022238,2]
[345993022,1734615056387,-150.0,0.00022246,2]
[345993023,1734615056397,-150.0,0.00022247,2]
[345993024,1734615056409,-150.0,0.00022254,2]
[345993025,1734615056419,-150.0,0.00022255,2]
[345993026,1734615056428,-150.0,0.00022256,2]
[345993027,1734615056438,-150.0,0.00022256,2]
[345993028,1734615056447,-700.0,0.0002226,2]
[345993029,1734615056460,-85934.4644974,0.00022265,2]
[345993030,1734615056470,-150.0,0.00022269,2]
[345993031,1734615056481,-150.0,0.00022271,2]
[345993032,1734615056491,-150.0,0.00022281,2]
[345993033,1734615056501,-150.0,0.00022282,2]
[345993034,1734615056511,-1000.0,0.00022287,2]
[345993035,1734615056521,-150.0,0.00022287,2]
[345993036,1734615056530,-150.0,0.00022296,2]
[345993037,1734615056540,-150.0,0.00022299,2]
[345993038,1734615056550,-150.0,0.00022299,2]
[345993039,1734615056559,-150.0,0.00022305,2]
[345993040,1734615056569,-150.0,0.00022307,2]
[345993041,1734615056579,-150.0,0.00022309,2]
[345993042,1734615056589,-150.0,0.0002231,2]
[345993043,1734615056598,-150.0,0.00022312,2]
[345993044,1734615056608,-150.0,0.00022315,2]
[345993045,1734615056618,-150.0,0.00022321,2]
[345993046,1734615056627,-150.0,0.00022322,2]
[345993047,1734615056637,-150.0,0.00022325,2]
[345993048,1734615056646,-150.0,0.00022328,2]
[345993049,1734615056656,-150.0,0.00022329,2]
[345993050,1734615056666,-150.0,0.00022332,2]
[345993051,1734615056676,-150.0,0.00022337,2]
[345993052,1734615056687,-150.0,0.00022338,2]
[345993053,1734615056696,-150.0,0.00022339,2]
[345993054,1734615056709,-150.0,0.00022344,2]
[345993055,1734615056719,-150.0,0.00022346,2]
[345993056,1734615056731,-150.0,0.00022346,2]
[345993057,1734615056740,-150.0,0.00022346,2]
[345993058,1734615056750,-150.0,0.00022348,2]
[345993059,1734615056760,-150.0,0.00022348,2]
[345993060,1734615056770,-150.0,0.00022348,2]
[345993061,1734615056779,-150.0,0.00022352,2]
[345993062,1734615056789,-150.0,0.00022354,2]
[345993063,1734615056799,-150.0,0.00022354,2]
[345993064,1734615056808,-150.0,0.00022354,2]
[345993065,1734615056818,-150.0,0.00022356,2]
[345993066,1734615056827,-150.0,0.00022356,2]
[345993067,1734615056837,-150.0,0.00022357,2]
[345993068,1734615056846,-150.0,0.00022358,2]
[345993069,1734615056856,-150.0,0.00022358,2]
[345993070,1734615056866,-150.0,0.0002236,2]
[345993071,1734615056875,-150.0,0.00022361,2]
[345993072,1734615056885,-150.0,0.00022362,2]
[345993073,1734615056894,-1099.46,0.00022363,2]
[345993074,1734615056904,-150.0,0.00022363,2]
[345993075,1734615056913,-150.0,0.00022364,2]
[345993076,1734615056923,-150.0,0.00022367,2]
[345993077,1734615056932,-616.67,0.00022369,2]
[345993078,1734615056941,-150.0,0.0002237,2]
[345993079,1734615056951,-150.0,0.00022371,2]
[345993080,1734615056963,-210.031,0.00022374,2]
[345993081,1734615056972,-1055.062,0.00022374,2]
[345993082,1734615056982,-151.421,0.00022374,2]
[345993083,1734615056991,-535.0,0.00022374,2]
[345993084,1734615057001,-1334.572,0.00022374,2]
[345993085,1734615057012,-3887.584,0.00022374,2]
[345993086,1734615057021,-635.0,0.00022374,2]
[345993087,1734615057032,-150.727,0.00022374,2]
[345993088,1734615057042,-1169.174,0.00022374,2]
[345993089,1734615057051,-3492.0,0.00022374,2]
[345993090,1734615057061,-150.0,0.00022377,2]
[345993091,1734615057071,-150.0,0.00022377,2]
[345993092,1734615057081,-150.0,0.00022378,2]
[345993093,1734615057091,-150.0,0.00022378,2]
[345993094,1734615057101,-150.0,0.0002238,2]
[345993095,1734615057111,-150.0,0.00022383,2]
[345993096,1734615057122,-150.0,0.00022384,2]
[345993097,1734615057131,-699.56,0.00022391,2]
[345993098,1734615057141,-150.0,0.00022392,2]
[345993099,1734615057151,-150.0,0.00022402,2]
[345993100,1734615057161,-150.0,0.00022402,2]
[345993101,1734615057171,-150.0,0.00022405,2]
[345993102,1734615057180,-150.0,0.00022409,2]
[345993103,1734615057190,-150.0,0.0002241,2]
[345993104,1734615057199,-1500.0,0.00022411,2]
[345993105,1734615057210,-150.0,0.00022415,2]
[345993106,1734615057219,-150.0,0.00022422,2]
[345993107,1734615057229,-150.0,0.00022423,2]
[345993108,1734615057239,-150.0,0.00022426,2]
[345993109,1734615057249,-150.0,0.00022428,2]
[345993110,1734615057258,-1500.0,0.00022437,2]
[345993111,1734615057268,-150.0,0.00022438,2]
[345993112,1734615057278,-150.0,0.00022439,2]
[345993113,1734615057287,-150.0,0.00022446,2]
[345993114,1734615057297,-1304.0,0.00022465,4]
[345993115,1734615057306,-700.0,0.00022465,4]
[345993116,1734615057316,-837.293361,0.00022465,4]
[345993117,1734615057327,-365.360532,0.00022465,4]
[345993118,1734615057337,-1298.302182,0.00022465,4]
[345993119,1734615057346,-500.0,0.00022465,4]
[345993120,1734615057356,-465.21052942,0.00022465,4]
[345993121,1734615057365,-500.0,0.00022465,4]
[345993122,1734615057374,-720.573861,0.00022465,4]
[345993123,1734615057384,-500.0,0.00022465,4]
[345993124,1734615057393,-339.15012741,0.00022465,4]
[345993125,1734615057405,-500.0,0.00022465,4]
[345993126,1734615057415,-500.0,0.00022465,4]
[345993127,1734615057424,-500.0,0.00022465,4]
[345993128,1734615057434,-561.92024609,0.00022465,4]
[345993129,1734615057445,-500.0,0.00022465,4]
[345993130,1734615057455,-500.0,0.00022465,4]
[345993131,1734615057468,-500.0,0.00022465,4]
[345993132,1734615057479,-500.0,0.00022465,4]
[345993133,1734615057490,-500.0,0.00022465,4]
[345993134,1734615057503,-500.0,0.00022465,4]
[345993135,1734615057513,-500.0,0.00022465,4]
[345993136,1734615057522,-397.96,0.00022465,4]
[345993137,1734615057532,-500.0,0.00022465,4]
[345993138,1734615057541,-500.0,0.00022465,4]
[345993139,1734615057551,-649.8,0.00022465,4]
[345993140,1734615057560,-159.28,0.00022465,4]
[345993141,1734615057570,-308.24392881,0.00022465,4]
[345993142,1734615057580,-500.0,0.00022465,4]
[345993143,1734615057591,-325.02,0.00022465,4]
[345993144,1734615057600,-500.0,0.00022465,4]
[345993145,1734615057610,-500.0,0.00022465,4]
[345993146,1734615057619,-632.24,0.00022465,4]
[345993147,1734615057629,-500.0,0.00022465,4]
[345993148,1734615057639,-500.0,0.00022465,4]
[345993149,1734615057649,-500.0,0.00022465,4]
[345993150,1734615057658,-500.0,0.00022465,4]
[345993151,1734615057668,-500.0,0.00022465,4]
[345993152,1734615057678,-500.0,0.00022465,4]
[345993153,1734615057688,-500.0,0.00022465,4]
[345993154,1734615057698,-500.0,0.00022465,4]
[345993155,1734615057711,-631.15,0.00022465,4]
[345993156,1734615057720,-500.0,0.00022465,4]
[345993157,1734615057730,-500.0,0.00022465,4]
[345993158,1734615057740,-500.0,0.00022465,4]
[345993159,1734615057845,-500.0,0.00022465,4]
[345993160,1734615057862,-500.0,0.00022465,4]
[345993161,1734615057872,-500.0,0.00022465,4]
[345993162,1734615057881,-500.0,0.00022465,4]
[345993163,1734615057891,-500.0,0.00022465,4]
[345993164,1734615057900,-500.0,0.00022465,4]
[345993165,1734615057910,-500.0,0.00022465,4]
[345993166,1734615057920,-507.24821785,0.00022465,4]
[345993167,1734615057930,-500.0,0.00022465,4]
[345993168,1734615057939,-500.0,0.00022465,4]
[345993169,1734615057949,-500.0,0.00022465,4]
[345993170,1734615057961,-500.0,0.00022465,4]
[345993171,1734615057971,-500.0,0.00022465,4]
[345993172,1734615057980,-500.0,0.00022465,4]
[345993173,1734615057990,-500.0,0.00022465,4]
[345993174,1734615057999,-500.0,0.00022465,4]
[345993175,1734615058009,-500.0,0.00022465,4]
[345993176,1734615058019,-387.17,0.00022465,4]
[345993177,1734615058029,-500.0,0.00022465,4]
[345993178,1734615058038,-500.0,0.00022465,4]
[345993179,1734615058048,-500.0,0.00022465,4]
[345993180,1734615058057,-500.0,0.00022465,4]
[345993181,1734615058066,-500.0,0.00022465,4]
[345993182,1734615058076,-500.0,0.00022465,4]
[345993183,1734615058085,-500.0,0.00022465,4]
[345993184,1734615058095,-500.0,0.00022465,4]
[345993185,1734615058104,-500.0,0.00022465,4]
[345993186,1734615058113,-500.0,0.00022465,4]
[345993187,1734615058122,-500.0,0.00022465,4]
[345993188,1734615058132,-500.0,0.00022465,4]
[345993189,1734615058141,-505.97,0.00022465,4]
[345993190,1734615058151,-500.0,0.00022465,4]
[345993191,1734615058161,-500.0,0.00022465,4]
[345993192,1734615058171,-500.0,0.00022465,4]
[345993193,1734615058180,-500.0,0.00022465,4]
[345993194,1734615058190,-1078.18,0.00022465,4]
[345993195,1734615058199,-500.0,0.00022465,4]
[345993196,1734615058210,-500.0,0.00022465,4]
[345993197,1734615058220,-364.98762187,0.00022465,4]
[345993198,1734615058229,-537.88,0.00022465,4]
[345993199,1734615058239,-813.86,0.00022465,4]
[345993200,1734615058248,-500.0,0.00022465,4]
[345993201,1734615058258,-500.0,0.00022465,4]
[345993202,1734615058269,-500.0,0.00022465,4]
[345993203,1734615058279,-500.0,0.00022465,4]
[345993204,1734615058289,-638.32,0.00022465,4]
[345993205,1734615058299,-500.0,0.00022465,4]
[345993206,1734615058309,-500.0,0.00022465,4]
[345993207,1734615058318,-500.0,0.00022465,4]
[345993208,1734615058328,-500.0,0.00022465,4]
[345993209,1734615058337,-500.0,0.00022465,4]
[345993210,1734615058346,-265.11041274,0.00022465,4]
[345993211,1734615058356,-500.0,0.00022465,2]
[345993212,1734615058366,-500.0,0.00022465,4]
[345993213,1734615058376,-500.0,0.00022465,4]
[345993214,1734615058385,-500.0,0.00022465,4]
[345993215,1734615058395,-500.0,0.00022465,4]
[345993216,1734615058406,-500.0,0.00022465,4]
[345993217,1734615058416,-500.0,0.00022465,4]
[345993218,1734615058426,-500.0,0.00022465,4]
[345993219,1734615058436,-500.0,0.00022465,4]
[345993220,1734615058447,-500.0,0.00022465,4]
[345993221,1734615058457,-500.0,0.00022465,4]
[345993222,1734615058471,-500.0,0.00022465,4]
[345993223,1734615058483,-500.0,0.00022465,4]
[345993224,1734615058493,-500.0,0.00022465,2]
[345993225,1734615058502,-500.0,0.00022465,4]
[345993226,1734615058512,-500.0,0.00022465,4]
[345993227,1734615058521,-500.0,0.00022465,4]
[345993228,1734615058532,-500.0,0.00022465,4]
[345993229,1734615058542,-500.0,0.00022465,4]
[345993230,1734615058552,-500.0,0.00022465,4]
[345993231,1734615058562,-500.0,0.00022465,4]
[345993232,1734615058572,-500.0,0.00022465,4]
[345993233,1734615058582,-500.0,0.00022465,4]
[345993234,1734615058592,-500.0,0.00022465,4]
[345993235,1734615058601,-500.0,0.00022465,4]
[345993236,1734615058611,-500.0,0.00022465,4]
[345993237,1734615058621,-500.0,0.00022465,4]
[345993238,1734615058631,-500.0,0.00022465,4]
[345993239,1734615058640,-500.0,0.00022465,4]
[345993240,1734615058650,-500.0,0.00022465,4]
[345993241,1734615058660,-500.0,0.00022465,4]
[345993242,1734615058669,-500.0,0.00022465,4]
[345993243,1734615058679,-500.0,0.00022465,4]
[345993244,1734615058688,-500.0,0.00022465,4]
[345993245,1734615058698,-500.0,0.00022465,4]
[345993246,1734615058707,-635.1,0.00022465,4]
[345993247,1734615058719,-500.0,0.00022465,4]
[345993248,1734615058728,-500.0,0.00022465,4]
[345993249,1734615058738,-598.11534645,0.00022465,4]
[345993250,1734615058748,-500.0,0.00022465,4]
[345993251,1734615058757,-500.0,0.00022465,4]
[345993252,1734615058767,-500.0,0.00022465,4]
[345993253,1734615058777,-500.0,0.00022465,4]
[345993254,1734615058786,-500.0,0.00022465,4]
[345993255,1734615058796,-500.0,0.00022465,4]
[345993256,1734615058805,-500.0,0.00022465,4]
[345993257,1734615058814,-500.0,0.00022465,4]
[345993258,1734615058824,-500.0,0.00022465,4]
[345993259,1734615058834,-597.44,0.00022465,4]
[345993260,1734615058844,-500.0,0.00022465,4]
[345993261,1734615058853,-470.7,0.00022465,4]
[345993262,1734615058863,-500.0,0.00022465,4]
[345993263,1734615058872,-500.0,0.00022465,4]
[345993264,1734615058882,-500.0,0.00022465,4]
[345993265,1734615058891,-500.0,0.00022465,4]
[345993266,1734615058902,-500.0,0.00022465,4]
[345993267,1734615058912,-500.0,0.00022465,4]
[345993268,1734615058922,-500.0,0.00022465,4]
[345993269,1734615058932,-500.0,0.00022465,4]
[345993270,1734615058941,-546.68,0.00022465,4]
[345993271,1734615058950,-500.0,0.00022465,4]
[345993272,1734615058961,-500.0,0.00022465,4]
[345993273,1734615058970,-500.0,0.00022465,4]
[345993274,1734615058979,-401.63,0.00022465,4]
[345993275,1734615058988,-500.0,0.00022465,4]
[345993276,1734615058998,-500.0,0.00022465,4]
[345993277,1734615059007,-500.0,0.00022465,4]
[345993278,1734615059016,-500.0,0.00022465,4]
[345993279,1734615059026,-508.53225078,0.00022465,4]
[345993280,1734615059035,-500.0,0.00022465,4]
[345993281,1734615059045,-500.0,0.00022465,4]
[345993282,1734615059054,-500.0,0.00022465,4]
[345993283,1734615059064,-500.0,0.00022465,4]
[345993284,1734615059073,-1141.3,0.00022465,4]
[345993285,1734615059083,-500.0,0.00022465,4]
[345993286,1734615059091,-500.0,0.00022465,4]
[345993287,1734615059101,-500.0,0.00022465,4]
[345993288,1734615059111,-500.0,0.00022465,4]
[345993289,1734615059120,-500.0,0.00022465,4]
[345993290,1734615059130,-500.0,0.00022465,4]
[345993291,1734615059140,-500.0,0.00022465,4]
[345993292,1734615059150,-500.0,0.00022465,4]
[345993293,1734615059159,-500.0,0.00022465,4]
[345993294,1734615059169,-500.0,0.00022465,4]
[345993295,1734615059179,-500.0,0.00022465,4]
[345993296,1734615059189,-500.0,0.00022465,4]
[345993297,1734615059198,-489.48104745,0.00022465,4]
[345993298,1734615059208,-500.0,0.00022465,4]
[345993299,1734615059219,-500.0,0.00022465,4]
[345993300,1734615059311,-500.0,0.00022465,4]
[345993301,1734615059327,-500.0,0.00022465,4]
[345993302,1734615059336,-500.0,0.00022465,4]
[345993303,1734615059346,-500.0,0.00022465,4]
[345993304,1734615059355,-500.0,0.00022465,4]
[345993305,1734615059364,-500.0,0.00022465,4]
[345993306,1734615059373,-500.0,0.00022465,4]
[345993307,1734615059382,-500.0,0.00022465,4]
[345993308,1734615059391,-500.0,0.00022465,4]
[345993309,1734615059402,-500.0,0.00022465,4]
[345993310,1734615059414,-506.98,0.00022465,4]
[345993311,1734615059423,-500.0,0.00022465,4]
[345993312,1734615059433,-500.0,0.00022465,4]
[345993313,1734615059444,-500.0,0.00022465,2]
[345993314,1734615059453,-500.0,0.00022465,4]
[345993315,1734615059465,-500.0,0.00022465,4]
[345993316,1734615059475,-500.0,0.00022465,4]
[345993317,1734615059484,-500.0,0.00022465,4]
[345993318,1734615059494,-500.0,0.00022465,4]
[345993319,1734615059503,-500.0,0.00022465,4]
[345993320,1734615059513,-500.0,0.00022465,4]
[345993321,1734615059522,-500.0,0.00022465,4]
[345993322,1734615059531,-500.0,0.00022465,4]
[345993323,1734615059541,-500.0,0.00022465,4]
[345993324,1734615059550,-500.0,0.00022465,4]
[345993325,1734615059559,-501.31245799,0.00022465,4]
[345993326,1734615059569,-500.0,0.00022465,4]
[345993327,1734615059579,-500.0,0.00022465,4]
[345993328,1734615059588,-764.61,0.00022465,4]
[345993329,1734615059598,-500.0,0.00022465,4]
[345993330,1734615059608,-500.0,0.00022465,4]
[345993331,1734615059617,-500.0,0.00022465,4]
[345993332,1734615059627,-500.0,0.00022465,4]
[345993333,1734615059636,-500.0,0.00022465,4]
[345993334,1734615059646,-500.0,0.00022465,4]
[345993335,1734615059655,-500.0,0.00022465,4]
[345993336,1734615059665,-500.0,0.00022465,4]
[345993337,1734615059674,-501.44150257,0.00022465,4]
[345993338,1734615059684,-500.0,0.00022465,4]
[345993339,1734615059694,-500.0,0.00022465,4]
[345993340,1734615059704,-524.17695691,0.00022465,4]
[345993341,1734615059716,-500.0,0.00022465,4]
[345993342,1734615059726,-500.0,0.00022465,4]
[345993343,1734615059735,-500.0,0.00022465,4]
[345993344,1734615059746,-500.0,0.00022465,4]
[345993345,1734615059755,-500.0,0.00022465,4]
[345993346,1734615059765,-437.7963559,0.00022465,4]
[345993347,1734615059775,-500.0,0.00022465,4]
[345993348,1734615059785,-500.0,0.00022465,4]
[345993349,1734615059795,-500.0,0.00022465,4]
[345993350,1734615059804,-500.0,0.00022465,4]
[345993351,1734615059814,-500.0,0.00022465,4]
[345993352,1734615059823,-500.0,0.00022465,4]